[Event "FRA-chT Top 12 2019"]
[Site "Brest"]
[Date "2019.05.23"]
[Round "6.8"]
[White "Skripchenko, Almira"]
[Black "Van Hoolandt, Patrick"]
[Result "1-0"]
[ECO "A06"]
[WhiteElo "2406"]
[BlackElo "2127"]
[Annotator "RC"]
[PlyCount "93"]
[EventDate "2019.05.18"]
[EventType "team-tourn"]
[EventCountry "FRA"]
[SourceTitle "playchess.com"]
[Source "ChessBase"]
[SourceQuality "1"]
[TimeControl "40/5400+30:1800+30"]

1. Nf3 {[%emt 0:01:16]} d5 {[%emt 0:00:00]} 2. g3 {[%emt 0:00:06]} Bg4 {[%emt 0:00:55]} 3. Bg2 {[%emt 0:00:06]} c6 {[%emt 0:02:13]} 4. O-O {[%emt 0:06:02]} Nd7 {[%emt 0:00:06]} 5. h3 {[%emt 0:00:21]} Bh5 {[%emt 0:00:06]} 6. d4 {[%emt 0:01:12]} Ngf6 {[%emt 0:00:21]} 7. Bf4 {[%emt 0:06:38]} e6 {[%emt 0:10:54]} 8. Nbd2 {[%emt 0:00:45]} Be7 {[%emt 0:00:49]} 9. g4 {[%emt 0:05:35]} Bg6 {[%emt 0:00:20]} 10. Nh4 {[%emt 0:01:06]} Ne4 {[%emt 0:04:15]} 11. Nxg6 {[%emt 0:00:53]} hxg6 {[%emt 0:05:44]} 12. Nxe4 {[%emt 0:01:41]} dxe4 {[%emt 0:00:03]} 13. c4 {[%emt 0:07:28]} g5 {[%emt 0:07:16]} 14. Bg3 {[%emt 0:02:49]} f5 {[%emt 0:16:40]} 15. e3 {[%emt 0:00:13]} Nf6 {[%emt 0:01:02]} 16. Qb3 {[%emt 0:11:11]} Qb6 {[%emt 0:16:46]} 17. Qc2 {[%emt 0:02:18]} g6 {[%emt 0:01:53]} 18. b4 {[%emt 0:03:25]} O-O {[%emt 0:02:39]} 19. Rab1 {[%emt 0:07:04]} Qd8 {[%emt 0:02:52]} 20. c5 {[%emt 0:02:08]} a6 {[%emt 0:03:03]} 21. a4 {[%emt 0:01:41]} Nd5 {[%emt 0:00:13]} 22. b5 {[%emt 0:09:15]} axb5 {[%emt 0:06:24]} 23. axb5 {[%emt 0:00:16]} Qa5 {[%emt 0:09:28]} 24. bxc6 {[%emt 0:06:08]} bxc6 {[%emt 0:00:01]} 25. Be5 {[%emt 0:00:11]} Bf6 {[%emt 0:01:26]} 26. Bd6 {[%emt 0:02:26]} Rf7 {[%emt 0:02:18]} 27. Rb3 {[%emt 0:00:21]} Kg7 {[%emt 0:01:17]} 28. Rfb1 Qa4 {[%emt 0:02:19]} 29. Bf1 {[%emt 0:04:14]} Qa2 {[%emt 0:01:41]} 30. R1b2 {[%emt 0:01:54]} Qa1 {[%emt 0:00:04]} 31. Rb1 {[%emt 0:08:16]} Qa4 {[%emt 0:00:20]} 32. Bg2 {[%emt 0:02:00]} Nb4 {[%emt 0:00:46]} 33. Qc4 {[%emt 0:00:43]} Nd5 {[%emt 0:00:25]} 34. Qc1 {[%emt 0:00:39]} Qa2 {[%emt 0:00:37]} 35. Rb8 {[%emt 0:05:09]} Raa7 {[%emt 0:01:17]} 36. Bf1 {[%emt 0:00:59]} fxg4 {[%emt 0:00:50]} 37. Bc4 {[%emt 0:01:01]} Qa4 {[%emt 0:00:21]} 38. hxg4 {[%emt 0:00:08]} Qa3 {[%emt 0:00:41]} 39. Qxa3 {[%emt 0:00:46]} Rxa3 {[%emt 0:00:01]} 40. Rc8 {[%emt 0:00:21]} Rc3 {[%emt 0:00:49]} 41. Bxd5 {[%emt 0:03:54]} exd5 {[%emt 0:03:53]} 42. Rxc6 {[%emt 0:00:31]} Rc2 {[%emt 0:01:11]} 43. Bg3 {[%emt 0:00:29]} Bd8 {[%emt 0:00:53]} 44. Ra1 {[%emt 0:01:01]} Rb7 {[%emt 0:03:26]} 45. Rd6 {[%emt 0:02:51]} Bc7 {[%emt 0:03:23]} 46. Rd7+ {[%emt 0:00:07]} Kf6 {[%emt 0:00:02]} 47. Rxc7 1-0

[Event "FRA-chT Top 12 2019"]
[Site "Brest"]
[Date "2019.05.23"]
[Round "6.8"]
[White "Verot, Melanie"]
[Black "Fruteau, Sabine"]
[Result "0-1"]
[ECO "D04"]
[WhiteElo "2069"]
[BlackElo "2015"]
[Annotator "NA RC"]
[PlyCount "66"]
[EventDate "2019.05.18"]
[EventType "team-tourn"]
[EventCountry "FRA"]
[SourceTitle "playchess.com"]
[Source "ChessBase"]
[SourceQuality "1"]
[TimeControl "40/5400+30:1800+30"]

1. d4 {[%emt 0:00:00]} Nf6 {[%emt 0:00:00]} 2. Nf3 {[%emt 0:00:00]} d5 {[%emt 0:01:14]} 3. e3 {[%emt 0:00:08]} g6 {[%emt 0:00:54]} 4. Bd3 {[%emt 0:03:00]} Bg7 {[%emt 0:00:32]} 5. Nbd2 {[%emt 0:01:38]} O-O {[%emt 0:00:12]} 6. O-O {[%emt 0:01:26]} c5 {[%emt 0:09:26]} 7. b3 {[%emt 0:08:11]} Nc6 {[%emt 0:03:21]} 8. a3 {[%emt 0:04:54]} b6 {[%emt 0:06:59]} 9. Bb2 {[%emt 0:01:42]} Bb7 {[%emt 0:00:07]} 10. Rc1 {[%emt 0:05:32]} Rc8 {[%emt 0:15:27]} 11. Qe2 {[%emt 0:05:11]} e6 {[%emt 0:04:13]} 12. c4 {[%emt 0:07:30]} Qe7 {[%emt 0:07:30]} 13. h3 {[%emt 0:07:57]} Rfd8 {[%emt 0:01:38]} 14. Rfd1 {[%emt 0:01:26]} Ne8 {[%emt 0:27:45]} 15. cxd5 {[%emt 0:13:29]} exd5 {[%emt 0:00:08]} 16. Nf1 {[%emt 0:08:27]} cxd4 {[%emt 0:02:00]} 17. exd4 {[%emt 0:01:54]} Qxe2 {[%emt 0:00:24]} 18. Bxe2 {[%emt 0:00:04]} Nd6 {[%emt 0:00:40]} 19. Ne3 {[%emt 0:03:23]} Ne4 {[%emt 0:06:46]} 20. b4 {[%emt 0:00:51]} h5 {[%emt 0:02:11]} 21. Bd3 {[%emt 0:01:15]} Ne7 {[%emt 0:03:53]} 22. Ne5 {[%emt 0:02:14]} Bh6 {[%emt 0:00:45]} 23. Rxc8 {[%emt 0:04:04]} Rxc8 {[%emt 0:00:48]} 24. Bxe4 {[%emt 0:00:53]} dxe4 {[%emt 0:00:07]} 25. N3c4 {[%emt 0:02:28]} Bd5 {[%emt 0:00:31]} 26. Nd6 {[%emt 0:00:53]} Rc2 {[%emt 0:01:20]} 27. Ba1 {[%emt 0:01:54]} e3 {[%emt 0:00:36]} 28. f3 {[%emt 0:01:56]} e2 {[%emt 0:00:34]} 29. Re1 {[%emt 0:02:07]} Be3+ {[%emt 0:00:15]} 30. Kh2 {[%emt 0:00:03]} Bf2 {[%emt 0:00:22]} 31. Bc3 {[%emt 0:01:51]} Bxe1 {[%emt 0:00:22]} 32. Bxe1 {[%emt 0:00:02]} Rc1 {[%emt 0:00:46]} 33. Nd3 {[%emt 0:00:07]} Rd1 {[%emt 0:00:21]} 0-1

[Event "FRA-chT Top 12 2019"]
[Site "Brest"]
[Date "2019.05.24"]
[Round "7.1"]
[White "Amin, Bassem"]
[Black "Fedorov, Alexei"]
[Result "1-0"]
[ECO "E71"]
[WhiteElo "2704"]
[BlackElo "2566"]
[Annotator "RC"]
[PlyCount "77"]
[EventDate "2019.05.18"]
[EventType "team-tourn"]
[EventCountry "FRA"]
[SourceTitle "playchess.com"]
[Source "ChessBase"]
[SourceQuality "1"]
[TimeControl "40/5400+30:1800+30"]

1. c4 {[%emt 0:00:33]} g6 {[%emt 0:00:00]} 2. Nc3 {[%emt 0:00:21]} Bg7 {[%emt 0:00:38]} 3. d4 {[%emt 0:00:09]} Nf6 {[%emt 0:00:05]} 4. e4 {[%emt 0:00:38]} d6 {[%emt 0:00:05]} 5. h3 {[%emt 0:00:08]} O-O {[%emt 0:00:13]} 6. Be3 {[%emt 0:00:05]} c5 {[%emt 0:03:40]} 7. d5 {[%emt 0:03:24]} e6 {[%emt 0:02:02]} 8. Bd3 {[%emt 0:00:13]} exd5 {[%emt 0:01:50]} 9. exd5 {[%emt 0:00:08]} Na6 {[%emt 0:03:04]} 10. Nf3 {[%emt 0:01:08]} Nb4 {[%emt 0:03:01]} 11. Be2 {[%emt 0:01:28]} Bf5 {[%emt 0:00:45]} 12. Rc1 {[%emt 0:00:44]} Ne4 {[%emt 0:12:00]} 13. g4 {[%emt 0:00:11]} Nxc3 {[%emt 0:00:23]} 14. bxc3 {[%emt 0:00:08]} Nxa2 {[%emt 0:00:07]} 15. gxf5 {[%emt 0:00:07]} Nxc1 {[%emt 0:00:28]} 16. Qxc1 {[%emt 0:00:11]} Qf6 {[%emt 0:00:16]} 17. fxg6 {[%emt 0:00:42]} Qxc3+ {[%emt 0:00:30]} 18. Qxc3 {[%emt 0:00:08]} Bxc3+ {[%emt 0:00:04]} 19. Kd1 {[%emt 0:00:10]} hxg6 {[%emt 0:02:22]} 20. Kc2 {[%emt 0:01:29]} Bg7 {[%emt 0:01:38]} 21. Rb1 {[%emt 0:00:32]} b6 {[%emt 0:04:24]} 22. h4 {[%emt 0:00:33]} Rfe8 {[%emt 0:07:23]} 23. Bd3 {[%emt 0:00:26]} Kf8 {[%emt 0:00:22]} 24. h5 {[%emt 0:00:25]} a5 {[%emt 0:25:08]} 25. h6 {[%emt 0:13:07]} Bf6 {[%emt 0:01:48]} 26. Kb3 {[%emt 0:09:53]} a4+ {[%emt 0:07:27]} 27. Ka3 {[%emt 0:00:18]} Bc3 {[%emt 0:00:45]} 28. Rxb6 {[%emt 0:02:25]} Reb8 {[%emt 0:01:03]} 29. Rb5 {[%emt 0:01:27]} Bb4+ {[%emt 0:01:22]} 30. Ka2 {[%emt 0:00:02]} Ke7 {[%emt 0:00:35]} 31. Bf4 {[%emt 0:03:31]} Bc3 {[%emt 0:00:38]} 32. Ng5 {[%emt 0:02:22]} f5 {[%emt 0:03:47]} 33. Ne6 {[%emt 0:01:42]} Rxb5 {[%emt 0:12:02]} 34. cxb5 {[%emt 0:00:09]} a3 {[%emt 0:00:02]} 35. Nxc5 {[%emt 0:07:42]} Bd4 {[%emt 0:02:37]} 36. Bg5+ {[%emt 0:01:07]} Kf7 {[%emt 0:00:33]} 37. Nb7 {[%emt 0:00:21]} Bxf2 {[%emt 0:00:15]} 38. Nxd6+ {[%emt 0:00:24]} Kg8 {[%emt 0:00:05]} 39. Nc4 {[%emt 0:01:32]} 1-0

[Event "FRA-chT Top 12 2019"]
[Site "Brest"]
[Date "2019.05.24"]
[Round "7.1"]
[White "Feller, Sebastien"]
[Black "Cornette, Deimante"]
[Result "1/2-1/2"]
[ECO "A06"]
[WhiteElo "2587"]
[BlackElo "2433"]
[Annotator "RC"]
[PlyCount "41"]
[EventDate "2019.05.18"]
[EventType "team-tourn"]
[EventCountry "FRA"]
[SourceTitle "playchess.com"]
[Source "ChessBase"]
[SourceQuality "1"]
[TimeControl "40/5400+30:1800+30"]

1. Nf3 {[%emt 0:00:00]} d5 {[%emt 0:00:00]} 2. g3 {[%emt 0:00:00]} g6 {[%emt 0:00:00]} 3. Bg2 {[%emt 0:00:12]} Bg7 {[%emt 0:00:08]} 4. d4 {[%emt 0:00:18]} c6 {[%emt 0:00:48]} 5. O-O {[%emt 0:00:45]} Nf6 {[%emt 0:00:20]} 6. Nbd2 {[%emt 0:09:46]} O-O {[%emt 0:02:44]} 7. Re1 {[%emt 0:04:17]} Bf5 {[%emt 0:12:19]} 8. Nh4 {[%emt 0:07:55]} Bc8 {[%emt 0:05:33]} 9. c3 {[%emt 0:07:18]} e5 {[%emt 0:05:22]} 10. dxe5 {[%emt 0:03:14]} Ng4 {[%emt 0:00:15]} 11. e4 {[%emt 0:07:02]} Nxe5 {[%emt 0:08:44]} 12. exd5 {[%emt 0:04:27]} Nd3 {[%emt 0:04:37]} 13. Rf1 {[%emt 0:16:12]} cxd5 {[%emt 0:09:00]} 14. Nb3 {[%emt 0:01:16]} Nxc1 {[%emt 0:01:22]} 15. Rxc1 {[%emt 0:01:19]} Bf6 {[%emt 0:01:56]} 16. Qxd5 {[%emt 0:06:08]} Bxh4 {[%emt 0:03:00]} 17. gxh4 {[%emt 0:00:26]} Qxh4 {[%emt 0:00:58]} 18. Nd4 {[%emt 0:06:42]} Nc6 {[%emt 0:16:51]} 19. Nxc6 {[%emt 0:03:02]} bxc6 {[%emt 0:00:04]} 20. Qxc6 {[%emt 0:00:39]} Rb8 {[%emt 0:01:51]} 21. Qe4 {[%emt 0:17:17]} 1/2-1/2

[Event "FRA-chT Top 12 2019"]
[Site "Brest"]
[Date "2019.05.24"]
[Round "7.2"]
[White "Cramling, Pia"]
[Black "Postny, Evgeny"]
[Result "1/2-1/2"]
[ECO "A05"]
[WhiteElo "2454"]
[BlackElo "2603"]
[Annotator "RC"]
[PlyCount "212"]
[EventDate "2019.05.18"]
[EventType "team-tourn"]
[EventCountry "FRA"]
[SourceTitle "playchess.com"]
[Source "ChessBase"]
[SourceQuality "1"]
[TimeControl "40/5400+30:1800+30"]

1. Nf3 {[%emt 0:00:00]} Nf6 {[%emt 0:00:00]} 2. c4 {[%emt 0:00:00]} e6 {[%emt 0:00:00]} 3. g3 {[%emt 0:00:08]} d5 {[%emt 0:00:00]} 4. Bg2 {[%emt 0:00:08]} d4 {[%emt 0:00:10]} 5. O-O {[%emt 0:00:44]} c5 {[%emt 0:00:13]} 6. e3 {[%emt 0:00:25]} Nc6 {[%emt 0:00:09]} 7. d3 {[%emt 0:00:18]} Bd6 {[%emt 0:04:49]} 8. exd4 {[%emt 0:00:50]} cxd4 {[%emt 0:00:05]} 9. Bg5 {[%emt 0:00:32]} O-O {[%emt 0:00:19]} 10. Nbd2 {[%emt 0:00:41]} Be7 {[%emt 0:00:58]} 11. Re1 {[%emt 0:07:13]} h6 {[%emt 0:03:23]} 12. Bxf6 {[%emt 0:00:23]} Bxf6 {[%emt 0:00:06]} 13. a3 {[%emt 0:08:11]} a5 {[%emt 0:01:40]} 14. c5 {[%emt 0:01:40]} b6 {[%emt 0:02:52]} 15. cxb6 {[%emt 0:05:16]} Qxb6 {[%emt 0:00:54]} 16. Nc4 {[%emt 0:01:03]} Qa6 {[%emt 0:00:55]} 17. Rc1 {[%emt 0:10:21]} Rb8 {[%emt 0:05:39]} 18. Qd2 {[%emt 0:03:25]} Bd7 {[%emt 0:04:26]} 19. h4 {[%emt 0:03:05]} Rfd8 {[%emt 0:11:46]} 20. Rc2 {[%emt 0:03:22]} a4 {[%emt 0:06:44]} 21. Qe2 {[%emt 0:11:40]} Be8 {[%emt 0:10:55]} 22. Rec1 {[%emt 0:01:10]} Ne7 {[%emt 0:05:02]} 23. Nfe5 {[%emt 0:10:18]} Nd5 {[%emt 0:02:01]} 24. Ng4 {[%emt 0:02:20]} Be7 {[%emt 0:01:14]} 25. Nce5 {[%emt 0:00:17]} Qb5 {[%emt 0:05:10]} 26. Nc4 {[%emt 0:06:22]} Bf8 {[%emt 0:05:08]} 27. Nd2 {[%emt 0:01:48]} Qa6 {[%emt 0:10:01]} 28. Ne5 {[%emt 0:00:55]} Rb5 {[%emt 0:01:44]} 29. Ndf3 {[%emt 0:02:49]} Qb6 {[%emt 0:01:15]} 30. Nc4 {[%emt 0:01:31]} Qa7 {[%emt 0:02:04]} 31. Nce5 {[%emt 0:01:31]} Rdb8 {[%emt 0:01:13]} 32. Nc4 {[%emt 0:00:13]} Nf6 {[%emt 0:03:49]} 33. Nfe5 {[%emt 0:00:35]} Qa6 {[%emt 0:00:59]} 34. Nf3 {[%emt 0:01:26]} Qa7 {[%emt 0:00:16]} 35. Nfe5 {[%emt 0:00:19]} Rc5 {[%emt 0:03:44]} 36. Nf3 {[%emt 0:01:42]} Rd8 {[%emt 0:02:31]} 37. Nce5 {[%emt 0:01:10]} Rxc2 {[%emt 0:00:07]} 38. Rxc2 {[%emt 0:00:44]} Qb6 {[%emt 0:02:07]} 39. Nd2 {[%emt 0:00:56]} Nd5 {[%emt 0:02:22]} 40. Ndc4 {[%emt 0:03:49]} Qa6 {[%emt 0:01:05]} 41. Nd2 {[%emt 0:35:25]} Ne7 {[%emt 0:04:48]} 42. Ne4 {[%emt 0:00:00]} Qb5 {[%emt 0:03:26]} 43. Nd2 {[%emt 0:00:00]} Rc8 {[%emt 0:03:48]} 44. Rxc8 {[%emt 0:00:00]} Nxc8 {[%emt 0:00:03]} 45. Ndc4 {[%emt 0:00:00]} Nb6 {[%emt 0:05:25]} 46. Qe4 {[%emt 0:00:00]} Nxc4 {[%emt 0:00:35]} 47. Nxc4 {[%emt 0:00:00]} Qc5 {[%emt 0:00:32]} 48. Qe5 {[%emt 0:00:00]} Bb5 {[%emt 0:05:08]} 49. Qxc5 {[%emt 0:00:00]} Bxc5 {[%emt 0:00:04]} 50. Kf1 {[%emt 0:00:00]} f6 {[%emt 0:08:34]} 51. Bf3 {[%emt 0:00:30]} Kf7 {[%emt 0:00:22]} 52. Bd1 {[%emt 0:00:25]} Ke7 {[%emt 0:00:35]} 53. b3 {[%emt 0:00:34]} axb3 {[%emt 0:00:18]} 54. Bxb3 {[%emt 0:00:06]} h5 {[%emt 0:01:58]} 55. f4 {[%emt 0:02:32]} Bc6 {[%emt 0:00:55]} 56. Kf2 {[%emt 0:02:10]} Bd5 {[%emt 0:00:20]} 57. a4 {[%emt 0:00:07]} Bb4 {[%emt 0:01:16]} 58. Ke2 {[%emt 0:02:23]} Bc6 {[%emt 0:01:27]} 59. Nd2 {[%emt 0:01:24]} Kd6 {[%emt 0:00:40]} 60. Ne4+ {[%emt 0:01:31]} Ke7 {[%emt 0:00:05]} 61. Nd2 {[%emt 0:00:16]} Ba5 {[%emt 0:00:19]} 62. Nf3 {[%emt 0:00:31]} Bb6 {[%emt 0:00:28]} 63. Nd2 {[%emt 0:00:53]} Bc7 {[%emt 0:00:19]} 64. Kf2 {[%emt 0:00:17]} Ba5 {[%emt 0:01:05]} 65. Ke2 {[%emt 0:00:18]} Bc7 {[%emt 0:00:25]} 66. Nf3 {[%emt 0:00:52]} Bb6 {[%emt 0:00:08]} 67. Nd2 {[%emt 0:00:14]} Bd7 {[%emt 0:00:23]} 68. Nc4 {[%emt 0:01:47]} Bc5 {[%emt 0:00:17]} 69. Kf2 {[%emt 0:00:09]} Kd8 {[%emt 0:00:35]} 70. Bd1 {[%emt 0:00:21]} Be8 {[%emt 0:00:19]} 71. Bb3 {[%emt 0:00:24]} Kc7 {[%emt 0:00:25]} 72. Nd2 {[%emt 0:00:28]} Bd7 {[%emt 0:00:19]} 73. Bd1 {[%emt 0:00:21]} Bb4 {[%emt 0:00:24]} 74. Nc4 {[%emt 0:00:43]} Be8 {[%emt 0:00:07]} 75. Bf3 {[%emt 0:01:09]} g6 {[%emt 0:01:21]} 76. Bd1 {[%emt 0:00:06]} Kc6 {[%emt 0:00:28]} 77. Bb3 {[%emt 0:00:28]} Be7 {[%emt 0:00:51]} 78. Nd2 {[%emt 0:00:23]} Bd7 {[%emt 0:00:11]} 79. Bc4 {[%emt 0:00:48]} Kb6 {[%emt 0:01:01]} 80. Nb3 {[%emt 0:00:22]} Bb4 {[%emt 0:00:50]} 81. Ke2 {[%emt 0:00:34]} e5 {[%emt 0:00:16]} 82. fxe5 {[%emt 0:00:43]} fxe5 {[%emt 0:00:29]} 83. Kf2 {[%emt 0:01:58]} Bxa4 {[%emt 0:00:44]} 84. Bf7 {[%emt 0:00:06]} Bc3 {[%emt 0:01:11]} 85. Ke2 {[%emt 0:00:21]} Bd7 {[%emt 0:00:38]} 86. Bxg6 {[%emt 0:00:08]} Bg4+ {[%emt 0:00:10]} 87. Kf2 {[%emt 0:00:21]} Kb5 {[%emt 0:00:26]} 88. Bf7 {[%emt 0:01:19]} Kb4 {[%emt 0:00:27]} 89. Bd5 {[%emt 0:01:08]} Ka3 {[%emt 0:00:47]} 90. Nc5 {[%emt 0:00:08]} Bb4 {[%emt 0:00:46]} 91. Ne6 {[%emt 0:00:43]} Kb2 {[%emt 0:00:29]} 92. Ng5 {[%emt 0:00:08]} Kc2 {[%emt 0:00:11]} 93. Nf7 {[%emt 0:00:22]} Bf5 {[%emt 0:00:47]} 94. Nxe5 {[%emt 0:00:27]} Bd6 {[%emt 0:00:28]} 95. Nf7 {[%emt 0:01:08]} Bc7 {[%emt 0:00:28]} 96. Bf3 {[%emt 0:00:28]} Bg6 {[%emt 0:00:25]} 97. Ng5 {[%emt 0:00:26]} Kxd3 {[%emt 0:00:29]} 98. Ne6 {[%emt 0:00:28]} Be5 {[%emt 0:00:25]} 99. g4 {[%emt 0:00:34]} hxg4 {[%emt 0:00:15]} 100. Bxg4 {[%emt 0:00:02]} Kc2 {[%emt 0:00:22]} 101. Nxd4+ {[%emt 0:00:28]} Bxd4+ {[%emt 0:00:04]} 102. Kf3 {[%emt 0:00:03]} Kd3 {[%emt 0:00:07]} 103. Kf4 {[%emt 0:00:09]} Be8 {[%emt 0:00:21]} 104. h5 {[%emt 0:00:18]} Be3+ {[%emt 0:00:03]} 105. Ke5 {[%emt 0:00:05]} Bh6 {[%emt 0:00:06]} 106. Bd1 {[%emt 0:00:17]} Ke3 {[%emt 0:00:40] Ke4+} 1/2-1/2

[Event "FRA-chT Top 12 2019"]
[Site "Brest"]
[Date "2019.05.24"]
[Round "7.3"]
[White "Landa, Konstantin"]
[Black "Istratescu, Andrei"]
[Result "1/2-1/2"]
[ECO "E06"]
[WhiteElo "2622"]
[BlackElo "2555"]
[Annotator "RC"]
[PlyCount "33"]
[EventDate "2019.05.18"]
[EventType "team-tourn"]
[EventCountry "FRA"]
[SourceTitle "playchess.com"]
[Source "ChessBase"]
[SourceQuality "1"]
[TimeControl "40/5400+30:1800+30"]

1. d4 {[%emt 0:00:56]} Nf6 {[%emt 0:00:12]} 2. Nf3 {[%emt 0:00:16]} e6 {[%emt 0:00:15]} 3. c4 {[%emt 0:00:17]} d5 {[%emt 0:00:04]} 4. g3 {[%emt 0:00:42]} Be7 {[%emt 0:00:44]} 5. Bg2 {[%emt 0:00:31]} O-O {[%emt 0:00:24]} 6. Nc3 {[%emt 0:00:51]} Nbd7 {[%emt 0:05:06]} 7. b3 {[%emt 0:08:52]} c6 {[%emt 0:09:48]} 8. O-O {[%emt 0:03:03]} b6 {[%emt 0:00:21]} 9. Bb2 {[%emt 0:15:19]} Ba6 {[%emt 0:04:34]} 10. Nd2 {[%emt 0:01:57]} Rc8 {[%emt 0:04:35]} 11. a4 {[%emt 0:10:58]} Bb4 {[%emt 0:06:55]} 12. e4 {[%emt 0:07:45]} c5 {[%emt 0:03:04]} 13. exd5 {[%emt 0:01:56]} Bxc3 {[%emt 0:00:43]} 14. Bxc3 {[%emt 0:03:00]} exd5 {[%emt 0:00:34]} 15. a5 {[%emt 0:02:40]} cxd4 {[%emt 0:04:35]} 16. Bxd4 {[%emt 0:00:28]} bxa5 {[%emt 0:00:17]} 17. Re1 {[%emt 0:05:12]} 1/2-1/2

[Event "FRA-chT Top 12 2019"]
[Site "Brest"]
[Date "2019.05.24"]
[Round "7.4"]
[White "Stevic, Hrvoje"]
[Black "Hera, Imre Jr."]
[Result "1-0"]
[ECO "B18"]
[WhiteElo "2580"]
[BlackElo "2611"]
[Annotator "RC"]
[PlyCount "85"]
[EventDate "2019.05.18"]
[EventType "team-tourn"]
[EventCountry "FRA"]
[SourceTitle "playchess.com"]
[Source "ChessBase"]
[SourceQuality "1"]
[TimeControl "40/5400+30:1800+30"]

1. e4 {[%emt 0:00:00]} c6 {[%emt 0:00:05]} 2. d4 {[%emt 0:00:00]} d5 {[%emt 0:00:06]} 3. Nc3 {[%emt 0:00:00]} dxe4 {[%emt 0:00:08]} 4. Nxe4 {[%emt 0:00:07]} Bf5 {[%emt 0:00:52]} 5. Ng3 {[%emt 0:00:11]} Bg6 {[%emt 0:00:07]} 6. Nh3 {[%emt 0:00:46]} Nf6 {[%emt 0:00:23]} 7. Nf4 {[%emt 0:00:46]} e5 {[%emt 0:00:24]} 8. dxe5 {[%emt 0:00:29]} Qa5+ {[%emt 0:00:06]} 9. c3 {[%emt 0:00:12]} Qxe5+ {[%emt 0:00:06]} 10. Be2 {[%emt 0:00:07]} Nbd7 {[%emt 0:00:13]} 11. O-O {[%emt 0:00:37]} O-O-O {[%emt 0:01:15]} 12. Qa4 {[%emt 0:00:20]} Bc5 {[%emt 0:00:05]} 13. Nd3 {[%emt 0:00:12]} Bxd3 {[%emt 0:00:05]} 14. Bxd3 {[%emt 0:00:06]} Nb6 {[%emt 0:00:25]} 15. Qc2 {[%emt 0:00:12]} Nbd5 {[%emt 0:00:33]} 16. Bd2 {[%emt 0:01:12]} Nf4 {[%emt 0:21:33]} 17. Bf5+ {[%emt 0:01:15]} Kb8 {[%emt 0:00:04]} 18. b4 {[%emt 0:01:47]} Bb6 {[%emt 0:03:43]} 19. c4 {[%emt 0:00:49]} Bd4 {[%emt 0:16:11]} 20. Rae1 {[%emt 0:00:16]} Qc7 {[%emt 0:04:07]} 21. b5 {[%emt 0:20:56]} g5 {[%emt 0:09:12]} 22. Ne4 {[%emt 0:18:11]} cxb5 {[%emt 0:04:31]} 23. g3 {[%emt 0:07:56]} N4d5 {[%emt 0:06:47]} 24. Nxf6 {[%emt 0:09:28]} Nxf6 {[%emt 0:00:02]} 25. Bxg5 {[%emt 0:08:07]} Qxc4 {[%emt 0:00:14]} 26. Re7 {[%emt 0:00:43]} Rd5 {[%emt 0:07:21]} 27. Rxf7 {[%emt 0:15:44]} Qxc2 {[%emt 0:20:16]} 28. Bf4+ {[%emt 0:00:11]} Ka8 {[%emt 0:00:07]} 29. Bxc2 {[%emt 0:00:07]} a6 {[%emt 0:01:45]} 30. Rd1 {[%emt 0:04:27]} Ng4 {[%emt 0:00:45]} 31. Kg2 {[%emt 0:02:49]} Nxf2 {[%emt 0:00:55]} 32. Rxd4 {[%emt 0:02:28]} Rxd4 {[%emt 0:00:02]} 33. Kxf2 {[%emt 0:00:05]} Rhd8 {[%emt 0:00:54]} 34. Kf3 {[%emt 0:01:41]} R4d7 {[%emt 0:00:33]} 35. Rxh7 {[%emt 0:01:49]} Rxh7 {[%emt 0:00:05]} 36. Bxh7 {[%emt 0:00:05]} Rh8 {[%emt 0:00:03]} 37. Bf5 {[%emt 0:00:35]} Rxh2 {[%emt 0:00:03]} 38. Be6 {[%emt 0:00:04]} a5 {[%emt 0:01:27]} 39. g4 {[%emt 0:00:08]} Rh7 {[%emt 0:01:02]} 40. g5 {[%emt 0:00:10]} Rg7 {[%emt 0:00:12]} 41. Kg4 {[%emt 0:30:10]} b4 {[%emt 0:30:30]} 42. Kf5 {[%emt 0:00:37]} a4 {[%emt 0:00:16]} 43. Kf6 {[%emt 0:00:44]} 1-0

[Event "FRA-chT Top 12 2019"]
[Site "Brest"]
[Date "2019.05.24"]
[Round "7.4"]
[White "Bailet, Pierre"]
[Black "Godart, Francois"]
[Result "1/2-1/2"]
[ECO "A06"]
[WhiteElo "2466"]
[BlackElo "2419"]
[Annotator "RC"]
[PlyCount "47"]
[EventDate "2019.05.18"]
[EventType "team-tourn"]
[EventCountry "FRA"]
[SourceTitle "playchess.com"]
[Source "ChessBase"]
[SourceQuality "1"]
[TimeControl "40/5400+30:1800+30"]

1. Nf3 {[%emt 0:00:00]} d5 {[%emt 0:00:04]} 2. g3 {[%emt 0:00:00]} Nf6 {[%emt 0:02:33]} 3. Bg2 {[%emt 0:00:09]} g6 {[%emt 0:05:31]} 4. c4 {[%emt 0:03:43]} c6 {[%emt 0:00:44]} 5. b3 {[%emt 0:01:09]} Bg7 {[%emt 0:01:02]} 6. Bb2 {[%emt 0:00:25]} O-O {[%emt 0:03:11]} 7. O-O {[%emt 0:00:34]} Bg4 {[%emt 0:04:06]} 8. d3 {[%emt 0:06:22]} Nbd7 {[%emt 0:09:05]} 9. Nbd2 {[%emt 0:02:34]} Re8 {[%emt 0:01:39]} 10. Ne5 {[%emt 0:08:05]} Nxe5 {[%emt 0:00:49]} 11. Bxe5 {[%emt 0:00:07]} Qd7 {[%emt 0:01:17]} 12. Rc1 {[%emt 0:05:46]} Qe6 {[%emt 0:10:27]} 13. d4 {[%emt 0:13:25]} Nd7 {[%emt 0:11:16]} 14. cxd5 {[%emt 0:08:28]} cxd5 {[%emt 0:00:06]} 15. Nf3 {[%emt 0:07:09]} Bxf3 {[%emt 0:11:25]} 16. Bxf3 {[%emt 0:00:25]} Nxe5 {[%emt 0:02:56]} 17. dxe5 {[%emt 0:00:09]} Rad8 {[%emt 0:01:43]} 18. Rc5 {[%emt 0:01:52]} Bxe5 {[%emt 0:01:31]} 19. Rxd5 {[%emt 0:01:32]} Rxd5 {[%emt 0:00:33]} 20. Bxd5 {[%emt 0:02:11]} Qb6 {[%emt 0:01:00]} 21. e3 {[%emt 0:02:56]} e6 {[%emt 0:01:09]} 22. Bc4 {[%emt 0:01:00]} Rd8 {[%emt 0:01:03]} 23. Qf3 {[%emt 0:01:08]} Qc7 {[%emt 0:01:25]} 24. Rd1 {[%emt 0:00:22]} 1/2-1/2